[Event "*** Titled Tuesday 3|2 Blitz"]
[Site "Chess.com"]
[Date "2016.10.04"]
[Round "3"]
[White "Baggio95"]
[Black "Dale"]
[Result "0-1"]
[WhiteElo "2334"]
[BlackElo "2063"]
[TimeControl "180+2"]
[EndTime "11:38:02 PDT"]
[Termination "Dale won by checkmate"]

1. e4 {[%clk 0:03:00.2]} 1... Nf6 {[%clk 0:03:00.1]} 2. e5 {[%clk 0:03:00.1]}
2... Nd5 {[%clk 0:03:01]} 3. d4 {[%clk 0:03:00.4]} 3... c5 {[%clk 0:03:01.7]} 4.
c4 {[%clk 0:02:53.9]} 4... Nb4 {[%clk 0:03:01.7]} 5. d5 {[%clk 0:02:41.3]} 5...
Qa5 {[%clk 0:03:01.1]} 6. Nc3 {[%clk 0:02:34.9]} 6... d6 {[%clk 0:03:01.2]} 7.
exd6 {[%clk 0:02:26.2]} 7... Bf5 {[%clk 0:03:00]} 8. dxe7 {[%clk 0:01:56.3]}
8... Bxe7 {[%clk 0:02:58.7]} 9. g4 {[%clk 0:01:43.5]} 9... Bg6 {[%clk
0:02:56.1]} 10. Bg2 {[%clk 0:01:30.6]} 10... Nc2+ {[%clk 0:02:53.3]} 11. Kf1
{[%clk 0:01:31.2]} 11... Nxa1 {[%clk 0:02:49]} 12. d6 {[%clk 0:01:31.5]} 12...
Bf6 {[%clk 0:02:22.2]} 13. Bxb7 {[%clk 0:01:16.9]} 13... O-O {[%clk 0:02:15]}
14. Bxa8 {[%clk 0:01:12.8]} 14... Nd7 {[%clk 0:02:14]} 15. Bd5 {[%clk
0:01:09.3]} 15... Bxc3 {[%clk 0:02:10.3]} 16. bxc3 {[%clk 0:01:07.2]} 16... Qxc3
{[%clk 0:02:11]} 17. Nf3 {[%clk 0:00:56.7]} 17... Re8 {[%clk 0:01:57.9]} 18. Kg2
{[%clk 0:00:55.5]} 18... Nc2 {[%clk 0:01:54]} 19. Qd2 {[%clk 0:00:50]} 19... Qf6
{[%clk 0:01:39.6]} 20. Bc6 {[%clk 0:00:47.5]} 20... Qe6 {[%clk 0:01:24.2]} 21.
Qf4 {[%clk 0:00:42.7]} 21... Rc8 {[%clk 0:01:15.8]} 22. Bd5 {[%clk 0:00:43]}
22... Qe2 {[%clk 0:01:08.9]} 23. Qd2 {[%clk 0:00:36.7]} 23... Nd4 {[%clk
0:00:59.9]} 24. Qxe2 {[%clk 0:00:35.9]} 24... Nxe2 {[%clk 0:01:00.1]} 25. Be3
{[%clk 0:00:35.7]} 25... Nc3 {[%clk 0:00:59.2]} 26. Bb7 {[%clk 0:00:28.7]} 26...
Rb8 {[%clk 0:00:57]} 27. Bc6 {[%clk 0:00:29.7]} 27... Nf6 {[%clk 0:00:51.5]} 28.
Bxc5 {[%clk 0:00:22.6]} 28... Rc8 {[%clk 0:00:48]} 29. d7 {[%clk 0:00:22.9]}
29... Nxd7 {[%clk 0:00:48.2]} 30. Bxd7 {[%clk 0:00:23.8]} 30... Rxc5 {[%clk
0:00:49.1]} 31. Rc1 {[%clk 0:00:20.7]} 31... Rxc4 {[%clk 0:00:41.3]} 32. Ne5
{[%clk 0:00:21.6]} 32... Rc7 {[%clk 0:00:36.8]} 33. Bc6 {[%clk 0:00:19]} 33...
Nd5 {[%clk 0:00:33.8]} 34. Rc5 {[%clk 0:00:18.2]} 34... Nf4+ {[%clk 0:00:31.7]}
35. Kf3 {[%clk 0:00:17]} 35... Ne6 {[%clk 0:00:32.5]} 36. Rc4 {[%clk 0:00:16]}
36... Kf8 {[%clk 0:00:30.3]} 37. Ke3 {[%clk 0:00:17]} 37... a5 {[%clk
0:00:27.1]} 38. f4 {[%clk 0:00:18]} 38... Bb1 {[%clk 0:00:26.4]} 39. a3 {[%clk
0:00:17.7]} 39... f6 {[%clk 0:00:25.6]} 40. Nf3 {[%clk 0:00:16]} 40... Ba2
{[%clk 0:00:18.3]} 41. Rc3 {[%clk 0:00:16.5]} 41... a4 {[%clk 0:00:17.1]} 42.
Nd4 {[%clk 0:00:14.1]} 42... Nxd4 {[%clk 0:00:13.1]} 43. Kxd4 {[%clk 0:00:16]}
43... Ke7 {[%clk 0:00:14.2]} 44. Kc5 {[%clk 0:00:16.8]} 44... Bb3 {[%clk
0:00:13]} 45. Re3+ {[%clk 0:00:17.7]} 45... Kf7 {[%clk 0:00:12.9]} 46. Kd6
{[%clk 0:00:18.7]} 46... Ra7 {[%clk 0:00:13.1]} 47. Re4 {[%clk 0:00:17.3]} 47...
Ra5 {[%clk 0:00:13.1]} 48. Re7+ {[%clk 0:00:17.9]} 48... Kf8 {[%clk 0:00:14.1]}
49. Re4 {[%clk 0:00:13.6]} 49... h5 {[%clk 0:00:13.3]} 50. gxh5 {[%clk
0:00:11.8]} 50... Rxh5 {[%clk 0:00:14.1]} 51. Bxa4 {[%clk 0:00:13.4]} 51... Bxa4
{[%clk 0:00:14]} 52. Rxa4 {[%clk 0:00:15.3]} 52... Rxh2 {[%clk 0:00:14.8]} 53.
Ke6 {[%clk 0:00:15.9]} 53... Re2+ {[%clk 0:00:14.5]} 54. Kf5 {[%clk 0:00:17.2]}
54... Ra2 {[%clk 0:00:13.9]} 55. Ra7 {[%clk 0:00:18.2]} 55... Ra1 {[%clk
0:00:13.7]} 56. a4 {[%clk 0:00:19.3]} 56... Ra3 {[%clk 0:00:14]} 57. Kg6 {[%clk
0:00:20.3]} 57... Ra2 {[%clk 0:00:10.8]} 58. Ra8+ {[%clk 0:00:18.7]} 58... Ke7
{[%clk 0:00:11.5]} 59. Kxg7 {[%clk 0:00:19.1]} 59... Ke6 {[%clk 0:00:09.4]} 60.
Ra5 {[%clk 0:00:17.5]} 60... f5 {[%clk 0:00:08.8]} 61. Kg6 {[%clk 0:00:18.3]}
61... Rg2+ {[%clk 0:00:08.6]} 62. Kh5 {[%clk 0:00:17.8]} 62... Kf6 {[%clk
0:00:09.2]} 63. Ra6+ {[%clk 0:00:18.4]} 63... Kf7 {[%clk 0:00:09.5]} 64. Ra7+
{[%clk 0:00:19.6]} 64... Kf6 {[%clk 0:00:10.4]} 65. Ra6+ {[%clk 0:00:20.5]}
65... Kf7 {[%clk 0:00:11.5]} 66. Rb6 {[%clk 0:00:20.3]} 66... Rg4 {[%clk
0:00:11]} 67. Rb4 {[%clk 0:00:21.4]} 67... Rg1 {[%clk 0:00:11.4]} 68. a5 {[%clk
0:00:22.1]} 68... Kf6 {[%clk 0:00:12.2]} 69. Ra4 {[%clk 0:00:23]} 69... Rh1#
{[%clk 0:00:12.5]} 0-1

[Event "*** Titled Tuesday 3|2 Blitz"]
[Site "Chess.com"]
[Date "2016.10.04"]
[Round "3"]
[White "Oleksandr_Bortnyk"]
[Black "NTBT_DHS"]
[Result "1-0"]
[WhiteElo "2727"]
[BlackElo "2458"]
[TimeControl "180+2"]
[EndTime "11:38:27 PDT"]
[Termination "Oleksandr_Bortnyk won by resignation"]

1. e4 {[%clk 0:03:01.9]} 1... g6 {[%clk 0:03:00.9]} 2. d4 {[%clk 0:03:02.4]}
2... Bg7 {[%clk 0:03:00.5]} 3. Nc3 {[%clk 0:03:04]} 3... a6 {[%clk 0:03:01.2]}
4. Be3 {[%clk 0:03:01.5]} 4... d6 {[%clk 0:03:01.2]} 5. h4 {[%clk 0:03:02.2]}
5... Nf6 {[%clk 0:03:01.8]} 6. f3 {[%clk 0:03:03.5]} 6... b5 {[%clk 0:03:02.7]}
7. g4 {[%clk 0:03:03.4]} 7... h6 {[%clk 0:03:03.3]} 8. Nh3 {[%clk 0:03:02.4]}
8... Bb7 {[%clk 0:02:54.5]} 9. Bg2 {[%clk 0:03:01]} 9... Nbd7 {[%clk 0:02:55]}
10. O-O {[%clk 0:02:50.1]} 10... b4 {[%clk 0:02:40.4]} 11. Ne2 {[%clk
0:02:50.9]} 11... c5 {[%clk 0:02:40.9]} 12. c3 {[%clk 0:02:51.5]} 12... a5
{[%clk 0:02:27.7]} 13. Qe1 {[%clk 0:02:28.9]} 13... O-O {[%clk 0:02:14.3]} 14.
Rd1 {[%clk 0:02:28.7]} 14... bxc3 {[%clk 0:02:09.2]} 15. bxc3 {[%clk 0:02:28.7]}
15... cxd4 {[%clk 0:02:08.3]} 16. cxd4 {[%clk 0:02:30.6]} 16... Ba6 {[%clk
0:02:05]} 17. Rf2 {[%clk 0:02:11.8]} 17... Nb6 {[%clk 0:02:00.9]} 18. Ng3 {[%clk
0:02:04.5]} 18... Nc4 {[%clk 0:01:57.3]} 19. Bc1 {[%clk 0:02:04.9]} 19... Nd7
{[%clk 0:01:55.1]} 20. f4 {[%clk 0:02:04.4]} 20... Qb6 {[%clk 0:01:54.9]} 21. e5
{[%clk 0:02:04]} 21... Rad8 {[%clk 0:01:37.6]} 22. e6 {[%clk 0:01:58.3]} 22...
Nf6 {[%clk 0:01:38.9]} 23. g5 {[%clk 0:01:57.2]} 23... Ng4 {[%clk 0:01:39.1]}
24. exf7+ {[%clk 0:01:57.3]} 24... Rxf7 {[%clk 0:01:40.3]} 25. Bd5 {[%clk
0:01:57.5]} 25... Bxd4 {[%clk 0:01:36.2]} 26. Qe6 {[%clk 0:01:51.3]} 26... Bxf2+
{[%clk 0:01:34.4]} 27. Kh1 {[%clk 0:01:52]} 27... Nce5 {[%clk 0:01:28.9]} 28.
fxe5 {[%clk 0:01:45.5]} 28... Nxe5 {[%clk 0:01:30]} 29. Ne4 {[%clk 0:00:59.6]}
29... Bc8 {[%clk 0:01:26.5]} 30. Qxe7 {[%clk 0:00:53.9]} 30... Bxh3 {[%clk
0:01:11.2]} 31. Bxf7+ {[%clk 0:00:49]} 31... Nxf7 {[%clk 0:01:10.6]} 32. Nf6+
{[%clk 0:00:46.8]} 32... Kh8 {[%clk 0:00:58.3]} 33. Qxf7 {[%clk 0:00:48]} 33...
Qc6+ {[%clk 0:00:59]} 34. Nd5 {[%clk 0:00:47.3]} 34... Bd4 {[%clk 0:00:53.9]}
35. Be3 {[%clk 0:00:27.1]} 35... Be5 {[%clk 0:00:50.6]} 36. Bf4 {[%clk
0:00:23.1]} 36... Qe8 {[%clk 0:00:27.7]} 37. Bxe5+ {[%clk 0:00:21]} 37... Qxe5
{[%clk 0:00:28.5]} 38. Qxg6 {[%clk 0:00:19.6]} 38... Bf5 {[%clk 0:00:24.3]} 39.
Qxh6+ {[%clk 0:00:19.8]} 39... Kg8 {[%clk 0:00:25.9]} 40. Nf6+ {[%clk
0:00:16.2]} 40... Kf7 {[%clk 0:00:27.3]} 41. Qh5+ {[%clk 0:00:17.7]} 41... Bg6
{[%clk 0:00:27.7]} 42. Qf3 {[%clk 0:00:19]} 42... Kg7 {[%clk 0:00:28.5]} 43. Rf1
{[%clk 0:00:15.5]} 43... Kh8 {[%clk 0:00:21.5]} 44. Qf4 {[%clk 0:00:11.5]} 44...
Qe2 {[%clk 0:00:18.5]} 45. Rf2 {[%clk 0:00:07.4]} 45... Qe1+ {[%clk 0:00:18.8]}
46. Kh2 {[%clk 0:00:09]} 46... Rf8 {[%clk 0:00:20.2]} 47. h5 {[%clk 0:00:08.4]}
47... Be4 {[%clk 0:00:21.6]} 48. Rf1 {[%clk 0:00:04.4]} 48... Qe2+ {[%clk
0:00:20.7]} 49. Qf2 {[%clk 0:00:05.7]} 49... Qb5 {[%clk 0:00:19.8]} 50. Re1
{[%clk 0:00:03.2]} 50... Qxg5 {[%clk 0:00:20.2]} 51. Rxe4 {[%clk 0:00:04.4]}
51... Rxf6 {[%clk 0:00:21.6]} 52. Qd4 {[%clk 0:00:05.3]} 52... Kh7 {[%clk
0:00:19.7]} 53. Rg4 {[%clk 0:00:04.7]} 53... Qf5 {[%clk 0:00:18.2]} 54. Kg3
{[%clk 0:00:04]} 54... Qf3+ {[%clk 0:00:17.7]} 55. Kh4 {[%clk 0:00:05.5]} 55...
Qf2+ {[%clk 0:00:17.3]} 56. Qxf2 {[%clk 0:00:06.2]} 56... Rxf2 {[%clk
0:00:18.8]} 57. a4 {[%clk 0:00:07.8]} 57... Rb2 {[%clk 0:00:19.2]} 58. Kg5
{[%clk 0:00:06.1]} 58... Rb4 {[%clk 0:00:19.1]} 59. Rf4 {[%clk 0:00:05.9]} 59...
d5 {[%clk 0:00:17.3]} 60. Rf7+ {[%clk 0:00:06.6]} 60... Kg8 {[%clk 0:00:18.8]}
61. Rd7 {[%clk 0:00:07.4]} 61... Rxa4 {[%clk 0:00:18.7]} 62. Rd8+ {[%clk
0:00:06.4]} 62... Kf7 {[%clk 0:00:18.6]} 63. h6 {[%clk 0:00:06.9]} 63... Ra1
{[%clk 0:00:18.3]} 64. h7 {[%clk 0:00:08.1]} 64... Rg1+ {[%clk 0:00:19.4]} 65.
Kf5 {[%clk 0:00:09.1]} 65... Rf1+ {[%clk 0:00:18.3]} 66. Ke5 {[%clk 0:00:10.2]}
66... Re1+ {[%clk 0:00:19.9]} 67. Kd6 {[%clk 0:00:11.6]} 67... Rh1 {[%clk
0:00:17.4]} 68. h8=Q {[%clk 0:00:12.6]} 68... Rxh8 {[%clk 0:00:18.5]} 69. Rxh8
{[%clk 0:00:14.5]} 69... d4 {[%clk 0:00:19.9]} 70. Rh3 {[%clk 0:00:15.5]} 1-0

[Event "*** Titled Tuesday 3|2 Blitz"]
[Site "Chess.com"]
[Date "2016.10.04"]
[Round "3"]
[White "wonderfultime"]
[Black "Semetey"]
[Result "1-0"]
[WhiteElo "2687"]
[BlackElo "2410"]
[TimeControl "180+2"]
[EndTime "11:39:10 PDT"]
[Termination "wonderfultime won by checkmate"]

1. d4 {[%clk 0:03:01.9]} 1... Nf6 {[%clk 0:03:00.2]} 2. c4 {[%clk 0:03:03.1]}
2... e6 {[%clk 0:03:01.7]} 3. Nf3 {[%clk 0:03:03.1]} 3... Bb4+ {[%clk
0:03:02.4]} 4. Nbd2 {[%clk 0:03:04.2]} 4... O-O {[%clk 0:03:03]} 5. a3 {[%clk
0:03:05.5]} 5... Be7 {[%clk 0:03:04.6]} 6. e4 {[%clk 0:03:06.6]} 6... d6 {[%clk
0:03:06.2]} 7. Be2 {[%clk 0:03:07.9]} 7... Nbd7 {[%clk 0:03:07.5]} 8. O-O {[%clk
0:03:09.2]} 8... e5 {[%clk 0:03:09]} 9. b4 {[%clk 0:03:10.3]} 9... exd4 {[%clk
0:03:08.3]} 10. Nxd4 {[%clk 0:03:12.2]} 10... Re8 {[%clk 0:03:09.7]} 11. Bb2
{[%clk 0:03:13.6]} 11... Bf8 {[%clk 0:03:10.6]} 12. Qc2 {[%clk 0:03:14.8]} 12...
c6 {[%clk 0:03:11.6]} 13. Rfd1 {[%clk 0:03:14.4]} 13... Qc7 {[%clk 0:03:12.1]}
14. h3 {[%clk 0:03:12.2]} 14... a5 {[%clk 0:03:11.2]} 15. Bf1 {[%clk 0:03:09.8]}
15... g6 {[%clk 0:03:10.9]} 16. N4f3 {[%clk 0:03:02.2]} 16... axb4 {[%clk
0:03:08.4]} 17. axb4 {[%clk 0:03:04.1]} 17... Rxa1 {[%clk 0:03:09.3]} 18. Rxa1
{[%clk 0:03:06]} 18... Ne5 {[%clk 0:03:08.3]} 19. Nxe5 {[%clk 0:03:05.1]} 19...
dxe5 {[%clk 0:03:09.1]} 20. c5 {[%clk 0:03:07]} 20... Be6 {[%clk 0:03:07.6]} 21.
Bc4 {[%clk 0:03:07.8]} 21... Bxc4 {[%clk 0:03:03.5]} 22. Nxc4 {[%clk 0:03:09.7]}
22... Nd7 {[%clk 0:03:04.7]} 23. Rd1 {[%clk 0:03:07.8]} 23... Rd8 {[%clk
0:03:02.1]} 24. Nxe5 {[%clk 0:03:00.9]} 24... Nxe5 {[%clk 0:02:58.9]} 25. Rxd8
{[%clk 0:03:02.8]} 25... Qxd8 {[%clk 0:02:54.2]} 26. Bxe5 {[%clk 0:03:04.1]}
26... Bg7 {[%clk 0:02:50]} 27. Bxg7 {[%clk 0:02:48.5]} 27... Kxg7 {[%clk
0:02:51.3]} 28. Qc3+ {[%clk 0:02:50.4]} 28... f6 {[%clk 0:02:52.7]} 29. e5
{[%clk 0:02:47.5]} 29... fxe5 {[%clk 0:02:48.8]} 30. Qxe5+ {[%clk 0:02:49.4]}
30... Kf7 {[%clk 0:02:49]} 31. f4 {[%clk 0:02:50.4]} 31... Qd1+ {[%clk 0:02:48]}
32. Kh2 {[%clk 0:02:51.1]} 32... Qd7 {[%clk 0:02:47.5]} 33. Qe4 {[%clk
0:02:26.8]} 33... Qc7 {[%clk 0:01:22.8]} 34. Qd4 {[%clk 0:02:26.1]} 34... Qe7
{[%clk 0:01:19.6]} 35. Qh8 {[%clk 0:02:25.9]} 35... Qh4 {[%clk 0:01:15.7]} 36.
Qe5 {[%clk 0:02:08.7]} 36... Qf2 {[%clk 0:01:15.9]} 37. Qc7+ {[%clk 0:02:03.8]}
37... Kf6 {[%clk 0:01:14.2]} 38. Qd6+ {[%clk 0:02:04.4]} 38... Kf7 {[%clk
0:01:14.8]} 39. Qc7+ {[%clk 0:02:05.5]} 39... Kf6 {[%clk 0:01:16.1]} 40. Qe5+
{[%clk 0:01:59.5]} 40... Kf7 {[%clk 0:01:17.1]} 41. Qe4 {[%clk 0:02:00]} 41...
h5 {[%clk 0:01:15.5]} 42. Qe5 {[%clk 0:01:55.5]} 42... h4 {[%clk 0:00:53.4]} 43.
Qc7+ {[%clk 0:01:52.8]} 43... Kf6 {[%clk 0:00:53.8]} 44. Qd8+ {[%clk 0:01:54.2]}
44... Kf7 {[%clk 0:00:54.8]} 45. Qg5 {[%clk 0:01:52.5]} 45... Qe1 {[%clk
0:00:53.6]} 46. Qe5 {[%clk 0:01:38.2]} 46... Qf2 {[%clk 0:00:50]} 47. Qe4 {[%clk
0:01:35.5]} 47... Kf6 {[%clk 0:00:46.5]} 48. Qe5+ {[%clk 0:01:36.2]} 48... Kf7
{[%clk 0:00:47.6]} 49. Qc7+ {[%clk 0:01:04.3]} 49... Kf6 {[%clk 0:00:48.1]} 50.
Qd6+ {[%clk 0:01:05.8]} 50... Kf7 {[%clk 0:00:49]} 51. Qe5 {[%clk 0:01:07.5]}
51... Kg8 {[%clk 0:00:30.2]} 52. Qb8+ {[%clk 0:01:04.6]} 52... Kg7 {[%clk
0:00:29.6]} 53. f5 {[%clk 0:00:39.8]} 53... gxf5 {[%clk 0:00:19.2]} 54. Qxb7+
{[%clk 0:00:41]} 54... Kf8 {[%clk 0:00:19.2]} 55. Qc8+ {[%clk 0:00:41.6]} 55...
Kg7 {[%clk 0:00:20.2]} 56. Qc7+ {[%clk 0:00:41.7]} 56... Kf8 {[%clk 0:00:21.4]}
57. Qd6+ {[%clk 0:00:43.1]} 57... Kg7 {[%clk 0:00:22.2]} 58. b5 {[%clk
0:00:44.4]} 58... f4 {[%clk 0:00:23]} 59. Qe7+ {[%clk 0:00:43.3]} 59... Kg8
{[%clk 0:00:23.2]} 60. Qe6+ {[%clk 0:00:44.7]} 60... Kg7 {[%clk 0:00:24]} 61.
Qg4+ {[%clk 0:00:45.9]} 61... Kf6 {[%clk 0:00:21.6]} 62. bxc6 {[%clk 0:00:46.9]}
62... Ke7 {[%clk 0:00:15.7]} 63. Qd7+ {[%clk 0:00:42.8]} 63... Kf6 {[%clk
0:00:16.6]} 64. Qd6+ {[%clk 0:00:44.3]} 64... Kf7 {[%clk 0:00:17.3]} 65. Qd5+
{[%clk 0:00:43.9]} 65... Kf6 {[%clk 0:00:18.6]} 66. Qd6+ {[%clk 0:00:44.1]}
66... Kf7 {[%clk 0:00:20]} 67. Qd5+ {[%clk 0:00:20.1]} 67... Kf6 {[%clk
0:00:21.1]} 68. Qd8+ {[%clk 0:00:21.7]} 68... Kf7 {[%clk 0:00:20.8]} 69. Qd5+
{[%clk 0:00:17.9]} 69... Ke7 {[%clk 0:00:21.5]} 70. Qe4+ {[%clk 0:00:19.2]}
70... Kf6 {[%clk 0:00:22.6]} 71. c7 {[%clk 0:00:19.7]} 71... Qg3+ {[%clk
0:00:23.3]} 72. Kh1 {[%clk 0:00:21.1]} 72... Qg8 {[%clk 0:00:19.1]} 73. Qxf4+
{[%clk 0:00:21.7]} 73... Ke7 {[%clk 0:00:20.6]} 74. Qxh4+ {[%clk 0:00:22.6]}
74... Kd7 {[%clk 0:00:21.8]} 75. Qg4+ {[%clk 0:00:23.9]} 75... Qxg4 {[%clk
0:00:21.7]} 76. hxg4 {[%clk 0:00:25.8]} 76... Kxc7 {[%clk 0:00:23.4]} 77. g5
{[%clk 0:00:27.4]} 77... Kd7 {[%clk 0:00:24.9]} 78. g6 {[%clk 0:00:29]} 78...
Ke6 {[%clk 0:00:26.4]} 79. c6 {[%clk 0:00:30.6]} 79... Kf6 {[%clk 0:00:27.3]}
80. c7 {[%clk 0:00:32.2]} 80... Kg5 {[%clk 0:00:28.8]} 81. c8=Q {[%clk
0:00:34.1]} 81... Kh4 {[%clk 0:00:30.3]} 82. g7 {[%clk 0:00:35.1]} 82... Kg3
{[%clk 0:00:31.7]} 83. g8=Q+ {[%clk 0:00:36.2]} 83... Kf2 {[%clk 0:00:32.8]} 84.
Qc5+ {[%clk 0:00:36.7]} 84... Ke2 {[%clk 0:00:33.1]} 85. Qgc4+ {[%clk
0:00:35.4]} 85... Kd1 {[%clk 0:00:34]} 86. Qd3+ {[%clk 0:00:35.9]} 86... Ke1
{[%clk 0:00:34.9]} 87. Qg1# {[%clk 0:00:37.3]} 1-0

[Event "*** Titled Tuesday 3|2 Blitz"]
[Site "Chess.com"]
[Date "2016.10.04"]
[Round "3"]
[White "Malev212"]
[Black "APL2001"]
[Result "0-1"]
[WhiteElo "2327"]
[BlackElo "2429"]
[TimeControl "180+2"]
[EndTime "11:39:37 PDT"]
[Termination "APL2001 won by resignation"]

1. Nf3 {[%clk 0:02:59.2]} 1... Nf6 {[%clk 0:03:00.5]} 2. g3 {[%clk 0:03:00.3]}
2... g6 {[%clk 0:03:01.5]} 3. b3 {[%clk 0:03:00.8]} 3... Bg7 {[%clk 0:03:02.8]}
4. Bb2 {[%clk 0:03:02]} 4... O-O {[%clk 0:03:04.5]} 5. Bg2 {[%clk 0:03:03.2]}
5... d6 {[%clk 0:03:06.1]} 6. d4 {[%clk 0:03:04.3]} 6... Nbd7 {[%clk 0:03:00.1]}
7. O-O {[%clk 0:03:05]} 7... e5 {[%clk 0:02:57.4]} 8. dxe5 {[%clk 0:03:05.7]}
8... Ng4 {[%clk 0:02:58.4]} 9. Qc1 {[%clk 0:03:00.2]} 9... Ngxe5 {[%clk
0:02:58.3]} 10. c4 {[%clk 0:02:59]} 10... Re8 {[%clk 0:02:54.6]} 11. Nc3 {[%clk
0:02:56.7]} 11... Nxf3+ {[%clk 0:02:53.1]} 12. Bxf3 {[%clk 0:02:56.6]} 12... Ne5
{[%clk 0:02:54.3]} 13. Bg2 {[%clk 0:02:57.2]} 13... Nc6 {[%clk 0:02:44.1]} 14.
Qd2 {[%clk 0:02:56.1]} 14... Bd7 {[%clk 0:02:37.4]} 15. Nd5 {[%clk 0:02:56]}
15... Ne5 {[%clk 0:02:24.6]} 16. Rad1 {[%clk 0:02:34.5]} 16... Bc6 {[%clk
0:02:18]} 17. Rfe1 {[%clk 0:02:24.2]} 17... Rb8 {[%clk 0:01:46.9]} 18. f4 {[%clk
0:02:19.3]} 18... Ng4 {[%clk 0:01:47]} 19. Bxg7 {[%clk 0:02:18.6]} 19... Kxg7
{[%clk 0:01:48.1]} 20. e4 {[%clk 0:02:11.6]} 20... Bxd5 {[%clk 0:01:42.7]} 21.
cxd5 {[%clk 0:02:08.9]} 21... c5 {[%clk 0:01:36.8]} 22. dxc6 {[%clk 0:02:05]}
22... bxc6 {[%clk 0:01:23.3]} 23. Qxd6 {[%clk 0:02:05.4]} 23... Qb6+ {[%clk
0:01:24.8]} 24. Qd4+ {[%clk 0:02:05.5]} 24... Qxd4+ {[%clk 0:01:26]} 25. Rxd4
{[%clk 0:02:05.8]} 25... Rb6 {[%clk 0:01:23]} 26. h3 {[%clk 0:02:04]} 26... Nf6
{[%clk 0:01:23.7]} 27. e5 {[%clk 0:02:04.7]} 27... Nd5 {[%clk 0:01:25]} 28. Bxd5
{[%clk 0:02:03.4]} 28... cxd5 {[%clk 0:01:26.4]} 29. Rxd5 {[%clk 0:02:04.2]}
29... Rc8 {[%clk 0:01:28.1]} 30. Re2 {[%clk 0:02:04.8]} 30... Rc3 {[%clk
0:01:27.7]} 31. Kg2 {[%clk 0:02:00.5]} 31... h5 {[%clk 0:01:28.9]} 32. h4 {[%clk
0:02:00.4]} 32... Rbc6 {[%clk 0:01:23.1]} 33. Rdd2 {[%clk 0:01:58.9]} 33... Kf8
{[%clk 0:01:20.9]} 34. Rf2 {[%clk 0:01:55.2]} 34... Re3 {[%clk 0:01:13.7]} 35.
Rf3 {[%clk 0:01:54.7]} 35... Re1 {[%clk 0:01:14.8]} 36. Rfd3 {[%clk 0:01:47.2]}
36... Rcc1 {[%clk 0:01:08.1]} 37. Rd7 {[%clk 0:01:40.8]} 37... Rg1+ {[%clk
0:01:07.8]} 38. Kf3 {[%clk 0:01:39]} 38... Rc3+ {[%clk 0:01:05.9]} 39. R2d3
{[%clk 0:01:30.3]} 39... Rcc1 {[%clk 0:00:55.1]} 40. Rxa7 {[%clk 0:01:25.7]}
40... Rce1 {[%clk 0:00:56.7]} 41. Rd2 {[%clk 0:01:16.5]} 41... Rgf1+ {[%clk
0:00:57.4]} 42. Rf2 {[%clk 0:01:16]} 42... Rg1 {[%clk 0:00:59.1]} 43. Rd7 {[%clk
0:01:07.9]} 43... Rc1 {[%clk 0:00:57.6]} 44. Rd3 {[%clk 0:01:06.4]} 44... Ke7
{[%clk 0:00:56]} 45. a4 {[%clk 0:01:00.5]} 45... Ra1 {[%clk 0:00:57.2]} 46. Ke4
{[%clk 0:00:55.7]} 46... Ke6 {[%clk 0:00:55]} 47. Rd6+ {[%clk 0:00:55.2]} 47...
Ke7 {[%clk 0:00:56.3]} 48. Rd3 {[%clk 0:00:51.5]} 48... Ke6 {[%clk 0:00:56.8]}
49. Re2 {[%clk 0:00:51.4]} 49... Rgb1 {[%clk 0:00:50.7]} 50. Rc2 {[%clk
0:00:51.4]} 50... Re1+ {[%clk 0:00:51]} 51. Re3 {[%clk 0:00:45.9]} 51... Red1
{[%clk 0:00:44.6]} 52. Rc6+ {[%clk 0:00:44.1]} 52... Ke7 {[%clk 0:00:45.9]} 53.
Rc7+ {[%clk 0:00:40.3]} 53... Ke6 {[%clk 0:00:42.8]} 54. Rec3 {[%clk 0:00:38.1]}
54... Re1+ {[%clk 0:00:43.6]} 55. Kd3 {[%clk 0:00:33.1]} 55... Red1+ {[%clk
0:00:40.6]} 56. Kc4 {[%clk 0:00:32]} 56... Rd8 {[%clk 0:00:38]} 57. Rc6+ {[%clk
0:00:26]} 57... Ke7 {[%clk 0:00:38.2]} 58. Kc5 {[%clk 0:00:23]} 58... Rad1
{[%clk 0:00:37.1]} 59. b4 {[%clk 0:00:22.2]} 59... R1d5+ {[%clk 0:00:36.5]} 60.
Kc4 {[%clk 0:00:21.8]} 60... Rd4+ {[%clk 0:00:37.4]} 61. Kb3 {[%clk 0:00:22.6]}
61... Rd1 {[%clk 0:00:38.8]} 62. a5 {[%clk 0:00:21.1]} 62... Rb1+ {[%clk
0:00:39.4]} 63. Kc4 {[%clk 0:00:21.4]} 63... Rb8 {[%clk 0:00:39.1]} 64. Rb6
{[%clk 0:00:20.9]} 64... Rc8+ {[%clk 0:00:40.5]} 65. Kd3 {[%clk 0:00:21.7]}
65... Rd8+ {[%clk 0:00:40.1]} 66. Kc2 {[%clk 0:00:21.4]} 66... Rdd1 {[%clk
0:00:41.8]} 67. Rc7+ {[%clk 0:00:18.8]} 67... Kf8 {[%clk 0:00:43.2]} 68. Rc4
{[%clk 0:00:15.2]} 68... Rbc1+ {[%clk 0:00:40.3]} 69. Kb3 {[%clk 0:00:15.5]}
69... Rd3+ {[%clk 0:00:41.2]} 70. Ka4 {[%clk 0:00:16.2]} 70... Rxc4 {[%clk
0:00:42.4]} 71. a6 {[%clk 0:00:17.4]} 71... Rc1 {[%clk 0:00:39.2]} 72. Kb5
{[%clk 0:00:15.3]} 72... Ra1 {[%clk 0:00:38.7]} 73. Rd6 {[%clk 0:00:14.5]} 73...
Rxg3 {[%clk 0:00:34]} 74. Kb6 {[%clk 0:00:14.4]} 74... Ke7 {[%clk 0:00:23.2]}
75. b5 {[%clk 0:00:14.7]} 75... Rga3 {[%clk 0:00:23.3]} 76. Rc6 {[%clk 0:00:14]}
76... Kd7 {[%clk 0:00:22.1]} 77. Rc7+ {[%clk 0:00:14.6]} 77... Ke6 {[%clk
0:00:23.7]} 78. a7 {[%clk 0:00:15]} 78... Rb1 {[%clk 0:00:21.8]} 79. Rc8 {[%clk
0:00:13.5]} 79... Rba1 {[%clk 0:00:23.3]} 80. Rc7 {[%clk 0:00:11.6]} 80... Ra4
{[%clk 0:00:24.8]} 81. Rb7 {[%clk 0:00:10.4]} 81... Rxf4 {[%clk 0:00:20.8]} 82.
Rb8 {[%clk 0:00:10.6]} 82... Rfa4 {[%clk 0:00:21.8]} 83. Rb7 {[%clk 0:00:11]}
83... Rxh4 {[%clk 0:00:22.7]} 0-1